[Event "Late-Titled-Tuesday-Blitz-April-16-2024"]
[Site "Chess.com"]
[Date "2024.04.16"]
[Round "7"]
[White "DonkyDonkyDonkey"]
[Black "Mops_2004"]
[Result "1/2-1/2"]
[WhiteElo "2916"]
[BlackElo "2828"]
[TimeControl "180+1"]
[EndTime "15:17:20 PDT"]
[Termination "Game drawn by stalemate"]

1. e4 {[%clk 0:03:00.9]} 1... g6 {[%clk 0:03:00.2]} 2. d4 {[%clk 0:03:00.8]}
2... Bg7 {[%clk 0:03:00.7]} 3. Nc3 {[%clk 0:03:01.2]} 3... d6 {[%clk 0:03:01.3]}
4. f4 {[%clk 0:03:01.1]} 4... Nf6 {[%clk 0:03:01]} 5. Nf3 {[%clk 0:03:01.5]}
5... c5 {[%clk 0:03:01.4]} 6. dxc5 {[%clk 0:03:01.5]} 6... Qa5 {[%clk
0:03:01.6]} 7. Bd3 {[%clk 0:03:01.5]} 7... Qxc5 {[%clk 0:03:01.4]} 8. Qe2 {[%clk
0:03:01]} 8... Bg4 {[%clk 0:03:02]} 9. Be3 {[%clk 0:03:00.9]} 9... Qa5 {[%clk
0:03:02.1]} 10. O-O {[%clk 0:03:01]} 10... Nc6 {[%clk 0:03:01.6]} 11. h3 {[%clk
0:03:00.9]} 11... Bxf3 {[%clk 0:03:01.7]} 12. Qxf3 {[%clk 0:03:01.8]} 12... O-O
{[%clk 0:03:00.8]} 13. a3 {[%clk 0:02:59.7]} 13... Nd7 {[%clk 0:03:00.6]} 14.
Rab1 {[%clk 0:02:36.2]} 14... Bxc3 {[%clk 0:02:44.8]} 15. bxc3 {[%clk
0:02:37.1]} 15... Nc5 {[%clk 0:02:44.7]} 16. Bd2 {[%clk 0:01:54.7]} 16... Nxd3
{[%clk 0:02:06.7]} 17. cxd3 {[%clk 0:01:55.6]} 17... Qxa3 {[%clk 0:02:06.9]} 18.
Rxb7 {[%clk 0:01:47.7]} 18... Rab8 {[%clk 0:01:37.2]} 19. Rxb8 {[%clk
0:01:45.5]} 19... Rxb8 {[%clk 0:01:37.3]} 20. e5 {[%clk 0:01:46]} 20... Rc8
{[%clk 0:01:03.9]} 21. d4 {[%clk 0:01:42.8]} 21... Qa2 {[%clk 0:00:59.7]} 22.
Be1 {[%clk 0:01:22.3]} 22... e6 {[%clk 0:00:49.2]} 23. exd6 {[%clk 0:01:16.4]}
23... Qd5 {[%clk 0:00:47.2]} 24. Qxd5 {[%clk 0:01:14.4]} 24... exd5 {[%clk
0:00:48.1]} 25. Bh4 {[%clk 0:01:14.8]} 25... f6 {[%clk 0:00:33]} 26. Bxf6 {[%clk
0:01:13.3]} 26... Kf7 {[%clk 0:00:33.3]} 27. d7 {[%clk 0:00:29.5]} 27... Ra8
{[%clk 0:00:32.9]} 28. d8=Q {[%clk 0:00:21.7]} 28... Nxd8 {[%clk 0:00:32.4]} 29.
Bxd8 {[%clk 0:00:22.6]} 29... Rxd8 {[%clk 0:00:32.8]} 30. Ra1 {[%clk 0:00:23.5]}
30... Rd7 {[%clk 0:00:12.4]} 31. Kf2 {[%clk 0:00:22.1]} 31... Rc7 {[%clk
0:00:12.6]} 32. Ke2 {[%clk 0:00:19.2]} 32... Rxc3 {[%clk 0:00:06.3]} 33. Rxa7+
{[%clk 0:00:19.5]} 33... Ke6 {[%clk 0:00:07]} 34. Rxh7 {[%clk 0:00:12.7]} 34...
Rc2+ {[%clk 0:00:07.4]} 35. Kf3 {[%clk 0:00:12.4]} 35... Rd2 {[%clk 0:00:08]}
36. Rg7 {[%clk 0:00:09.6]} 36... Kf6 {[%clk 0:00:08.2]} 37. Rd7 {[%clk
0:00:10.1]} 37... Rxd4 {[%clk 0:00:07.6]} 38. h4 {[%clk 0:00:09.3]} 38... Ke6
{[%clk 0:00:06.4]} 39. Rd8 {[%clk 0:00:09.6]} 39... Rd2 {[%clk 0:00:04.7]} 40.
g3 {[%clk 0:00:08.9]} 40... Ke7 {[%clk 0:00:04]} 41. Ra8 {[%clk 0:00:08.9]}
41... Kf6 {[%clk 0:00:04.1]} 42. Kg4 {[%clk 0:00:09.2]} 42... d4 {[%clk
0:00:03.8]} 43. Rd8 {[%clk 0:00:09.5]} 43... d3 {[%clk 0:00:03.8]} 44. Rd6+
{[%clk 0:00:09.2]} 44... Kf7 {[%clk 0:00:04.3]} 45. Kg5 {[%clk 0:00:09]} 45...
Rd1 {[%clk 0:00:02.3]} 46. Rd7+ {[%clk 0:00:08.3]} 46... Ke6 {[%clk 0:00:02.1]}
47. Rd4 {[%clk 0:00:09.1]} 47... Kf7 {[%clk 0:00:02.3]} 48. g4 {[%clk
0:00:09.8]} 48... d2 {[%clk 0:00:02.7]} 49. Rd7+ {[%clk 0:00:09.2]} 49... Ke6
{[%clk 0:00:03.2]} 50. Rd3 {[%clk 0:00:10]} 50... Kf7 {[%clk 0:00:03.2]} 51. Rd4
{[%clk 0:00:10]} 51... Kg7 {[%clk 0:00:02.4]} 52. Rd7+ {[%clk 0:00:10.1]} 52...
Kf8 {[%clk 0:00:02.8]} 53. Kxg6 {[%clk 0:00:11]} 53... Rg1 {[%clk 0:00:02.4]}
54. Rd8+ {[%clk 0:00:10.3]} 54... Ke7 {[%clk 0:00:02.3]} 55. Rxd2 {[%clk
0:00:11.2]} 55... Rxg4+ {[%clk 0:00:02.7]} 56. Kf5 {[%clk 0:00:11.6]} 56... Rg1
{[%clk 0:00:02.3]} 57. Rh2 {[%clk 0:00:10.2]} 57... Kf7 {[%clk 0:00:02.3]} 58.
h5 {[%clk 0:00:10.9]} 58... Kg7 {[%clk 0:00:01.9]} 59. h6+ {[%clk 0:00:11.7]}
59... Kh7 {[%clk 0:00:02.6]} 60. Kf6 {[%clk 0:00:12.2]} 60... Ra1 {[%clk
0:00:03.2]} 61. f5 {[%clk 0:00:12.7]} 61... Ra6+ {[%clk 0:00:04.1]} 62. Kg5
{[%clk 0:00:13.4]} 62... Ra4 {[%clk 0:00:04.1]} 63. Rd2 {[%clk 0:00:13.5]} 63...
Ra7 {[%clk 0:00:03.3]} 64. Re2 {[%clk 0:00:14.1]} 64... Rb7 {[%clk 0:00:03.5]}
65. Re5 {[%clk 0:00:14.4]} 65... Rc7 {[%clk 0:00:03.7]} 66. f6 {[%clk
0:00:14.9]} 66... Rc1 {[%clk 0:00:03.7]} 67. Re7+ {[%clk 0:00:15.1]} 67... Kg8
{[%clk 0:00:04]} 68. f7+ {[%clk 0:00:11.1]} 68... Kf8 {[%clk 0:00:03.7]} 69.
Re8+ {[%clk 0:00:11.6]} 69... Kxf7 {[%clk 0:00:03.8]} 70. h7 {[%clk 0:00:12.4]}
70... Rg1+ {[%clk 0:00:03]} 71. Kf4 {[%clk 0:00:12.8]} 71... Rf1+ {[%clk
0:00:02.6]} 72. Kg3 {[%clk 0:00:13.2]} 72... Kxe8 {[%clk 0:00:02.6]} 73. h8=Q+
{[%clk 0:00:13.5]} 73... Rf8 {[%clk 0:00:03.5]} 74. Qe5+ {[%clk 0:00:13.5]}
74... Kf7 {[%clk 0:00:03.6]} 75. Qc7+ {[%clk 0:00:12.7]} 75... Kg6 {[%clk
0:00:03.5]} 76. Kg4 {[%clk 0:00:13]} 76... Rf7 {[%clk 0:00:03.5]} 77. Qe5 {[%clk
0:00:12.9]} 77... Rf6 {[%clk 0:00:02.9]} 78. Qe8+ {[%clk 0:00:13.3]} 78... Rf7
{[%clk 0:00:02.6]} 79. Qg8+ {[%clk 0:00:14]} 79... Kf6 {[%clk 0:00:03]} 80. Qd8+
{[%clk 0:00:13.1]} 80... Ke6 {[%clk 0:00:03.5]} 81. Kg5 {[%clk 0:00:13.6]} 81...
Rg7+ {[%clk 0:00:03.7]} 82. Kh6 {[%clk 0:00:13.6]} 82... Rd7 {[%clk 0:00:03.6]}
83. Qb6+ {[%clk 0:00:12.3]} 83... Rd6 {[%clk 0:00:03.6]} 84. Qe3+ {[%clk
0:00:13]} 84... Kf5+ {[%clk 0:00:03.8]} 85. Kh5 {[%clk 0:00:12.7]} 85... Re6
{[%clk 0:00:04.1]} 86. Qf3+ {[%clk 0:00:13.2]} 86... Ke5 {[%clk 0:00:04.3]} 87.
Kg5 {[%clk 0:00:14]} 87... Kd6 {[%clk 0:00:04.6]} 88. Qd3+ {[%clk 0:00:12.9]}
88... Ke5 {[%clk 0:00:04.3]} 89. Qd7 {[%clk 0:00:08.4]} 89... Rd6 {[%clk
0:00:03.6]} 90. Qc7 {[%clk 0:00:08.9]} 90... Ke6 {[%clk 0:00:03.6]} 91. Qc4+
{[%clk 0:00:08.1]} 91... Ke5 {[%clk 0:00:03.5]} 92. Qe2+ {[%clk 0:00:07.4]}
92... Kd4 {[%clk 0:00:03.3]} 93. Kf5 {[%clk 0:00:07.4]} 93... Rd5+ {[%clk
0:00:03.3]} 94. Kf4 {[%clk 0:00:08.2]} 94... Kc5 {[%clk 0:00:02.9]} 95. Qe7+
{[%clk 0:00:08.9]} 95... Kd4 {[%clk 0:00:02.7]} 96. Qe3+ {[%clk 0:00:09.3]}
96... Kc4 {[%clk 0:00:03.1]} 97. Ke4 {[%clk 0:00:10.1]} 97... Rb5 {[%clk
0:00:03.2]} 98. Qd3+ {[%clk 0:00:09.7]} 98... Kc5 {[%clk 0:00:03.7]} 99. Qd5+
{[%clk 0:00:09.1]} 99... Kb4 {[%clk 0:00:03.4]} 100. Qd6+ {[%clk 0:00:09.5]}
100... Kc4 {[%clk 0:00:03.4]} 101. Qc6+ {[%clk 0:00:08.3]} 101... Kb4 {[%clk
0:00:02.9]} 102. Kd4 {[%clk 0:00:08.5]} 102... Ka5 {[%clk 0:00:03.1]} 103. Kc4
{[%clk 0:00:07.1]} 103... Rb4+ {[%clk 0:00:03.6]} 104. Kc5 {[%clk 0:00:07.5]}
104... Rc4+ {[%clk 0:00:03.2]} 105. Kxc4 {[%clk 0:00:06.8]} 1/2-1/2

[Event "Late-Titled-Tuesday-Blitz-April-16-2024"]
[Site "Chess.com"]
[Date "2024.04.16"]
[Round "8"]
[White "mbojan"]
[Black "Bykov_Egor"]
[Result "1-0"]
[WhiteElo "2950"]
[BlackElo "2602"]
[TimeControl "180+1"]
[EndTime "15:20:36 PDT"]
[Termination "mbojan won by resignation"]

1. a3 {[%clk 0:03:00.9]} 1... e5 {[%clk 0:02:57]} 2. e3 {[%clk 0:03:00.6]} 2...
d5 {[%clk 0:02:50.6]} 3. d4 {[%clk 0:03:01.5]} 3... e4 {[%clk 0:02:43.8]} 4. c4
{[%clk 0:03:01.7]} 4... c6 {[%clk 0:02:43.8]} 5. Bd2 {[%clk 0:03:01.8]} 5... c5
{[%clk 0:02:28.1]} 6. dxc5 {[%clk 0:02:51.2]} 6... Bxc5 {[%clk 0:02:15.1]} 7.
cxd5 {[%clk 0:02:51.4]} 7... Nf6 {[%clk 0:02:14.6]} 8. Nc3 {[%clk 0:02:51.4]}
8... O-O {[%clk 0:02:12.5]} 9. Nh3 {[%clk 0:02:50.6]} 9... Bxh3 {[%clk
0:01:58.3]} 10. gxh3 {[%clk 0:02:50.8]} 10... Nxd5 {[%clk 0:01:58.9]} 11. Nxe4
{[%clk 0:02:48.3]} 11... Bb6 {[%clk 0:01:49.6]} 12. Bg2 {[%clk 0:02:48.4]} 12...
f5 {[%clk 0:01:37.8]} 13. Nc3 {[%clk 0:02:46.5]} 13... Nxc3 {[%clk 0:01:33.2]}
14. Bxc3 {[%clk 0:02:47]} 14... Qe7 {[%clk 0:01:22.7]} 15. Bb4 {[%clk 0:02:43]}
15... Bc5 {[%clk 0:01:05.8]} 16. Qd5+ {[%clk 0:02:42.7]} 1-0

[Event "Late-Titled-Tuesday-Blitz-April-16-2024"]
[Site "Chess.com"]
[Date "2024.04.16"]
[Round "8"]
[White "masterofpuppets2"]
[Black "djano"]
[Result "1/2-1/2"]
[WhiteElo "2503"]
[BlackElo "2616"]
[TimeControl "180+1"]
[EndTime "15:21:20 PDT"]
[Termination "Game drawn by repetition"]

1. d4 {[%clk 0:03:00.9]} 1... Nf6 {[%clk 0:02:59.5]} 2. c4 {[%clk 0:03:01.3]}
2... e5 {[%clk 0:02:58.1]} 3. dxe5 {[%clk 0:03:01.1]} 3... Ng4 {[%clk
0:02:58.4]} 4. Nf3 {[%clk 0:03:01.1]} 4... Nc6 {[%clk 0:02:58.8]} 5. a3 {[%clk
0:02:56.8]} 5... Ncxe5 {[%clk 0:02:50.8]} 6. Nxe5 {[%clk 0:02:57.7]} 6... Nxe5
{[%clk 0:02:51.3]} 7. e3 {[%clk 0:02:56.3]} 7... b6 {[%clk 0:02:44.8]} 8. b4
{[%clk 0:02:55.3]} 8... Bb7 {[%clk 0:02:39.3]} 9. Bb2 {[%clk 0:02:55.2]} 9...
Qf6 {[%clk 0:02:29.8]} 10. Qc2 {[%clk 0:02:47.8]} 10... O-O-O {[%clk 0:02:20.3]}
11. Nc3 {[%clk 0:02:42.7]} 11... Qh4 {[%clk 0:02:05]} 12. Nd5 {[%clk 0:02:31.6]}
12... Bd6 {[%clk 0:01:48.9]} 13. O-O-O {[%clk 0:02:20.8]} 13... Rhe8 {[%clk
0:01:43.8]} 14. g3 {[%clk 0:01:59.2]} 14... Qh5 {[%clk 0:01:32.6]} 15. Be2
{[%clk 0:01:38.1]} 15... Qh3 {[%clk 0:01:32.6]} 16. Bf1 {[%clk 0:01:37]} 16...
Qh5 {[%clk 0:01:32.1]} 17. Be2 {[%clk 0:01:36.3]} 17... Qh3 {[%clk 0:01:32.1]}
18. Bf1 {[%clk 0:01:35.8]} 18... Qh5 {[%clk 0:01:31.8]} 1/2-1/2

[Event "Late-Titled-Tuesday-Blitz-April-16-2024"]
[Site "Chess.com"]
[Date "2024.04.16"]
[Round "8"]
[White "1800_strength"]
[Black "maximnovik"]
[Result "1-0"]
[WhiteElo "2734"]
[BlackElo "2573"]
[TimeControl "180+1"]
[EndTime "15:21:28 PDT"]
[Termination "1800_strength won by resignation"]

1. Nf3 {[%clk 0:02:58.1]} 1... Nf6 {[%clk 0:02:58.8]} 2. g3 {[%clk 0:02:58.4]}
2... g6 {[%clk 0:02:58.8]} 3. Bg2 {[%clk 0:02:59.3]} 3... Bg7 {[%clk 0:02:58.9]}
4. O-O {[%clk 0:03:00.2]} 4... d5 {[%clk 0:02:59.5]} 5. d3 {[%clk 0:03:00.6]}
5... O-O {[%clk 0:02:59.4]} 6. Nbd2 {[%clk 0:03:01.2]} 6... c5 {[%clk
0:02:59.3]} 7. e4 {[%clk 0:03:01.8]} 7... e6 {[%clk 0:02:59.9]} 8. Re1 {[%clk
0:03:00.5]} 8... Nc6 {[%clk 0:02:59.8]} 9. c3 {[%clk 0:02:59.8]} 9... a5 {[%clk
0:02:59.7]} 10. a4 {[%clk 0:02:51.3]} 10... b6 {[%clk 0:02:58]} 11. exd5 {[%clk
0:02:41.8]} 11... exd5 {[%clk 0:02:55.1]} 12. d4 {[%clk 0:02:42]} 12... cxd4
{[%clk 0:02:44.1]} 13. Nxd4 {[%clk 0:02:42.9]} 13... Nxd4 {[%clk 0:02:43.9]} 14.
cxd4 {[%clk 0:02:43.4]} 14... Bf5 {[%clk 0:02:40.2]} 15. Nf3 {[%clk 0:02:37.1]}
15... Ne4 {[%clk 0:02:33.5]} 16. Qb3 {[%clk 0:02:32]} 16... Be6 {[%clk 0:02:21]}
17. Bf4 {[%clk 0:02:30.6]} 17... Rc8 {[%clk 0:02:19.1]} 18. Rac1 {[%clk
0:02:30.1]} 18... f6 {[%clk 0:02:09.8]} 19. Rxc8 {[%clk 0:02:23.4]} 19... Qxc8
{[%clk 0:02:09.4]} 20. Qxb6 {[%clk 0:02:23.9]} 20... Bf7 {[%clk 0:01:39.2]} 21.
Rc1 {[%clk 0:02:20.9]} 21... Qa8 {[%clk 0:01:29.2]} 22. Rc7 {[%clk 0:02:04]}
22... Rb8 {[%clk 0:01:21.6]} 23. Ra7 {[%clk 0:02:04.3]} 23... Rxb6 {[%clk
0:01:18]} 24. Rxa8+ {[%clk 0:02:04.8]} 24... Bf8 {[%clk 0:01:18]} 25. Bh6 {[%clk
0:02:05.5]} 1-0

[Event "Late-Titled-Tuesday-Blitz-April-16-2024"]
[Site "Chess.com"]
[Date "2024.04.16"]
[Round "8"]
[White "ContrVersia"]
[Black "wild3000"]
[Result "1-0"]
[WhiteElo "2841"]
[BlackElo "2498"]
[TimeControl "180+1"]
[EndTime "15:21:35 PDT"]
[Termination "ContrVersia won by checkmate"]

1. d4 {[%clk 0:03:00.9]} 1... Nf6 {[%clk 0:02:59.1]} 2. c4 {[%clk 0:03:01]} 2...
e6 {[%clk 0:02:59]} 3. Nc3 {[%clk 0:03:00.8]} 3... Be7 {[%clk 0:02:57.7]} 4. e4
{[%clk 0:03:00.1]} 4... d6 {[%clk 0:02:57.9]} 5. f4 {[%clk 0:02:59]} 5... O-O
{[%clk 0:02:57.6]} 6. Nf3 {[%clk 0:02:58.8]} 6... a6 {[%clk 0:02:57.8]} 7. e5
{[%clk 0:02:58.1]} 7... Ne8 {[%clk 0:02:57.2]} 8. Bd3 {[%clk 0:02:57.6]} 8... c5
{[%clk 0:02:54.5]} 9. d5 {[%clk 0:02:57.3]} 9... exd5 {[%clk 0:02:52.6]} 10.
cxd5 {[%clk 0:02:56.1]} 10... Bg4 {[%clk 0:02:49.8]} 11. O-O {[%clk 0:02:56.1]}
11... Qc7 {[%clk 0:02:42]} 12. Qe1 {[%clk 0:02:52.4]} 12... Nd7 {[%clk
0:02:30.5]} 13. e6 {[%clk 0:02:39.3]} 13... Ndf6 {[%clk 0:02:15.7]} 14. exf7+
{[%clk 0:02:36.5]} 14... Rxf7 {[%clk 0:02:16.6]} 15. Ng5 {[%clk 0:02:33.1]}
15... c4 {[%clk 0:01:45.1]} 16. Bc2 {[%clk 0:02:23.6]} 16... Rf8 {[%clk
0:01:40.1]} 17. f5 {[%clk 0:02:17.4]} 17... Qd7 {[%clk 0:01:28.5]} 18. h3 {[%clk
0:02:08.8]} 18... Bh5 {[%clk 0:01:25.7]} 19. Ne6 {[%clk 0:02:06.4]} 19... Nc7
{[%clk 0:01:20.7]} 20. Qg3 {[%clk 0:01:48.9]} 20... Ncxd5 {[%clk 0:01:09]} 21.
Qxg7# {[%clk 0:01:47.7]} 1-0

[Event "Late-Titled-Tuesday-Blitz-April-16-2024"]
[Site "Chess.com"]
[Date "2024.04.16"]
[Round "8"]
[White "dianamirza"]
[Black "StopLookingAtMyProfile"]
[Result "0-1"]
[WhiteElo "1951"]
[BlackElo "2339"]
[TimeControl "180+1"]
[EndTime "15:21:36 PDT"]
[Termination "StopLookingAtMyProfile won by resignation"]

1. d4 {[%clk 0:02:42.8]} 1... Nf6 {[%clk 0:02:59]} 2. c4 {[%clk 0:02:41.8]} 2...
g6 {[%clk 0:02:58]} 3. Nc3 {[%clk 0:02:42.7]} 3... Bg7 {[%clk 0:02:58.3]} 4. g3
{[%clk 0:02:43.2]} 4... O-O {[%clk 0:02:55.8]} 5. Bg2 {[%clk 0:02:44.1]} 5... c5
{[%clk 0:02:55.7]} 6. d5 {[%clk 0:02:43.7]} 6... d6 {[%clk 0:02:54.7]} 7. e4
{[%clk 0:02:44.2]} 7... e6 {[%clk 0:02:53.3]} 8. Nge2 {[%clk 0:02:44.3]} 8...
exd5 {[%clk 0:02:53]} 9. cxd5 {[%clk 0:02:44.1]} 9... Re8 {[%clk 0:02:48.7]} 10.
O-O {[%clk 0:02:41.9]} 10... Nbd7 {[%clk 0:02:48.4]} 11. Bf4 {[%clk 0:02:34.3]}
11... Ne5 {[%clk 0:02:41.7]} 12. Bxe5 {[%clk 0:02:17]} 12... Rxe5 {[%clk
0:02:39.7]} 13. f4 {[%clk 0:02:16.8]} 13... Re8 {[%clk 0:02:39.1]} 14. Rc1
{[%clk 0:02:06.2]} 14... a6 {[%clk 0:02:35.5]} 15. Qb3 {[%clk 0:02:00.9]} 15...
b5 {[%clk 0:02:33.6]} 16. a4 {[%clk 0:02:00.7]} 16... Rb8 {[%clk 0:02:25.3]} 17.
axb5 {[%clk 0:01:59.8]} 17... axb5 {[%clk 0:02:25.7]} 18. Nxb5 {[%clk
0:01:59.6]} 18... c4 {[%clk 0:02:17.5]} 19. Rxc4 {[%clk 0:01:55]} 19... Qb6+
{[%clk 0:02:16]} 20. Ned4 {[%clk 0:01:51.4]} 20... Nxe4 {[%clk 0:02:15.2]} 21.
Bxe4 {[%clk 0:01:31.2]} 21... Rxe4 {[%clk 0:02:14]} 22. Qd3 {[%clk 0:01:23.8]}
22... Bf5 {[%clk 0:02:08.6]} 23. g4 {[%clk 0:01:18.2]} 23... Rxd4 {[%clk
0:02:04.1]} 24. Qxd4 {[%clk 0:01:05.7]} 24... Bxd4+ {[%clk 0:02:02.6]} 25. Nxd4
{[%clk 0:01:06.6]} 25... Bd3 {[%clk 0:02:02]} 26. Rc6 {[%clk 0:01:05.3]} 26...
Qxd4+ {[%clk 0:02:01.1]} 0-1

[Event "Late-Titled-Tuesday-Blitz-April-16-2024"]
[Site "Chess.com"]
[Date "2024.04.16"]
[Round "8"]
[White "zano2023"]
[Black "zverr1"]
[Result "0-1"]
[WhiteElo "2190"]
[BlackElo "2512"]
[TimeControl "180+1"]
[EndTime "15:21:42 PDT"]
[Termination "zverr1 won by resignation"]

1. d4 {[%clk 0:03:00.7]} 1... Nf6 {[%clk 0:02:58.7]} 2. Nd2 {[%clk 0:03:00]}
2... d5 {[%clk 0:02:58.6]} 3. Ngf3 {[%clk 0:02:57.6]} 3... g6 {[%clk 0:02:58.3]}
4. e3 {[%clk 0:02:56.1]} 4... Bg7 {[%clk 0:02:58.9]} 5. Bd3 {[%clk 0:02:55.9]}
5... O-O {[%clk 0:02:59.6]} 6. O-O {[%clk 0:02:55.8]} 6... b6 {[%clk 0:02:59.4]}
7. Qe2 {[%clk 0:02:54.3]} 7... Bb7 {[%clk 0:02:59.9]} 8. c3 {[%clk 0:02:51.1]}
8... c5 {[%clk 0:03:00]} 9. e4 {[%clk 0:02:44.1]} 9... cxd4 {[%clk 0:02:55.8]}
10. cxd4 {[%clk 0:02:43.6]} 10... dxe4 {[%clk 0:02:53.4]} 11. Nxe4 {[%clk
0:02:43]} 11... Nc6 {[%clk 0:02:52.3]} 12. Rd1 {[%clk 0:02:34.7]} 12... Nb4
{[%clk 0:02:44.6]} 13. Bb1 {[%clk 0:02:29.2]} 13... Nxe4 {[%clk 0:02:38.4]} 14.
Bxe4 {[%clk 0:02:26.8]} 14... Bxe4 {[%clk 0:02:39]} 15. Qxe4 {[%clk 0:02:26.2]}
15... Qd5 {[%clk 0:02:38.2]} 16. Qxd5 {[%clk 0:02:24.2]} 16... Nxd5 {[%clk
0:02:39.1]} 17. a3 {[%clk 0:02:23.4]} 17... Rac8 {[%clk 0:02:35.5]} 18. Bg5
{[%clk 0:02:15.7]} 18... Rc2 {[%clk 0:02:32.9]} 19. Rd2 {[%clk 0:02:16.2]} 19...
Rfc8 {[%clk 0:02:32]} 20. Rad1 {[%clk 0:02:04.8]} 20... h6 {[%clk 0:02:31.2]}
21. Be3 {[%clk 0:01:58.4]} 21... e6 {[%clk 0:02:21.8]} 22. h3 {[%clk 0:01:57.7]}
22... Kh7 {[%clk 0:02:09.1]} 23. Ne5 {[%clk 0:01:46.5]} 23... Bxe5 {[%clk
0:01:51.2]} 24. dxe5 {[%clk 0:01:45.2]} 24... Kg7 {[%clk 0:01:51.5]} 25. Bd4
{[%clk 0:01:36.5]} 25... Nf4 {[%clk 0:01:43.9]} 26. Kf1 {[%clk 0:01:31.9]} 26...
Rxd2 {[%clk 0:01:43]} 0-1

[Event "Late-Titled-Tuesday-Blitz-April-16-2024"]
[Site "Chess.com"]
[Date "2024.04.16"]
[Round "8"]
[White "Flawless_Fighter"]
[Black "steepedgames"]
[Result "0-1"]
[WhiteElo "2733"]
[BlackElo "2511"]
[TimeControl "180+1"]
[EndTime "15:22:24 PDT"]
[Termination "steepedgames won by checkmate"]

1. e4 {[%clk 0:02:59.6]} 1... e6 {[%clk 0:02:56]} 2. d4 {[%clk 0:02:59.5]} 2...
d5 {[%clk 0:02:56]} 3. Nd2 {[%clk 0:03:00.2]} 3... Nf6 {[%clk 0:02:56.3]} 4. e5
{[%clk 0:03:00.9]} 4... Nfd7 {[%clk 0:02:56.9]} 5. Bd3 {[%clk 0:03:01.2]} 5...
c5 {[%clk 0:02:57.6]} 6. c3 {[%clk 0:03:01.3]} 6... Be7 {[%clk 0:02:56.7]} 7.
Ne2 {[%clk 0:03:00.8]} 7... b6 {[%clk 0:02:57]} 8. O-O {[%clk 0:03:00]} 8... Ba6
{[%clk 0:02:57.2]} 9. Bxa6 {[%clk 0:02:59.4]} 9... Nxa6 {[%clk 0:02:58.1]} 10.
Nf3 {[%clk 0:02:59.8]} 10... c4 {[%clk 0:02:54.5]} 11. b3 {[%clk 0:02:59.5]}
11... b5 {[%clk 0:02:54.5]} 12. a4 {[%clk 0:02:59.3]} 12... Nc7 {[%clk 0:02:52]}
13. axb5 {[%clk 0:02:58.7]} 13... Nxb5 {[%clk 0:02:51]} 14. bxc4 {[%clk
0:02:58.8]} 14... dxc4 {[%clk 0:02:50.2]} 15. Qa4 {[%clk 0:02:57.6]} 15... Rb8
{[%clk 0:02:32.3]} 16. Qxc4 {[%clk 0:02:56.6]} 16... O-O {[%clk 0:02:32.5]} 17.
Be3 {[%clk 0:02:55.1]} 17... Qc8 {[%clk 0:02:26.5]} 18. Qd3 {[%clk 0:02:48.6]}
18... Na3 {[%clk 0:02:20.9]} 19. Nd2 {[%clk 0:02:44.5]} 19... Nb6 {[%clk
0:02:18.8]} 20. Rfc1 {[%clk 0:02:38.8]} 20... Nbc4 {[%clk 0:01:40.1]} 21. Nxc4
{[%clk 0:02:38]} 21... Nxc4 {[%clk 0:01:40.3]} 22. Rxa7 {[%clk 0:02:36.9]} 22...
Ba3 {[%clk 0:01:38.2]} 23. Rf1 {[%clk 0:02:34.3]} 23... Rd8 {[%clk 0:01:34.8]}
24. h3 {[%clk 0:02:33.1]} 24... Nxe5 {[%clk 0:01:33.6]} 25. Qe4 {[%clk
0:02:30.2]} 25... Nc4 {[%clk 0:01:25.1]} 26. Qf3 {[%clk 0:02:26.1]} 26... Rd7
{[%clk 0:01:24]} 27. Rxd7 {[%clk 0:02:23.5]} 27... Qxd7 {[%clk 0:01:24.9]} 28.
Nf4 {[%clk 0:02:19.5]} 28... g6 {[%clk 0:01:21.5]} 29. Nd3 {[%clk 0:02:18]}
29... Qd5 {[%clk 0:01:12.5]} 30. Qf4 {[%clk 0:02:15.7]} 30... Bd6 {[%clk
0:01:12]} 31. Qh6 {[%clk 0:02:14.2]} 31... Rb3 {[%clk 0:01:01.9]} 32. Ra1 {[%clk
0:02:02.2]} 32... Rxc3 {[%clk 0:00:58.3]} 33. Ra8+ {[%clk 0:02:00.7]} 33... Qxa8
{[%clk 0:00:57.4]} 34. Bg5 {[%clk 0:01:54]} 34... Rxd3 {[%clk 0:00:53.4]} 35.
Bf6 {[%clk 0:01:53.9]} 35... Rd1# {[%clk 0:00:51.9]} 0-1

[Event "Late-Titled-Tuesday-Blitz-April-16-2024"]
[Site "Chess.com"]
[Date "2024.04.16"]
[Round "8"]
[White "ellatambien"]
[Black "ural58"]
[Result "0-1"]
[WhiteElo "2710"]
[BlackElo "2538"]
[TimeControl "180+1"]
[EndTime "15:22:48 PDT"]
[Termination "ural58 won by resignation"]

1. c4 {[%clk 0:03:00.9]} 1... e5 {[%clk 0:02:59]} 2. Nc3 {[%clk 0:03:01]} 2...
Nf6 {[%clk 0:02:58.1]} 3. Nf3 {[%clk 0:03:01.3]} 3... e4 {[%clk 0:02:57.6]} 4.
Ng5 {[%clk 0:02:59]} 4... c6 {[%clk 0:02:57.6]} 5. Ngxe4 {[%clk 0:02:57.2]} 5...
Nxe4 {[%clk 0:02:57.4]} 6. Nxe4 {[%clk 0:02:57.4]} 6... d5 {[%clk 0:02:55.7]} 7.
cxd5 {[%clk 0:02:57.4]} 7... cxd5 {[%clk 0:02:55.7]} 8. Ng3 {[%clk 0:02:57.5]}
8... h5 {[%clk 0:02:55]} 9. h4 {[%clk 0:02:57.2]} 9... Bd6 {[%clk 0:02:53]} 10.
Qb3 {[%clk 0:02:56.1]} 10... Nc6 {[%clk 0:02:46]} 11. e3 {[%clk 0:02:17.4]}
11... Bxg3 {[%clk 0:02:44.5]} 12. fxg3 {[%clk 0:02:16.6]} 12... Qd6 {[%clk
0:02:41.3]} 13. Kf2 {[%clk 0:02:04.7]} 13... Ne5 {[%clk 0:02:17.9]} 14. Be2
{[%clk 0:02:02.3]} 14... Bg4 {[%clk 0:02:15.4]} 15. d4 {[%clk 0:01:51.4]} 15...
Qf6+ {[%clk 0:02:09.2]} 16. Ke1 {[%clk 0:01:48.5]} 16... Bxe2 {[%clk 0:01:51.5]}
17. dxe5 {[%clk 0:01:45.6]} 17... Qa6 {[%clk 0:01:51.3]} 18. a4 {[%clk
0:01:32.1]} 18... O-O {[%clk 0:01:50.2]} 19. Bd2 {[%clk 0:01:26.6]} 19... Rac8
{[%clk 0:01:42.3]} 20. Kf2 {[%clk 0:01:03.5]} 20... Bc4 {[%clk 0:01:29.3]} 21.
Qb4 {[%clk 0:01:02.5]} 21... Qg6 {[%clk 0:01:27.8]} 22. Rhe1 {[%clk 0:00:57]}
22... b6 {[%clk 0:01:21.7]} 23. Rac1 {[%clk 0:00:46.6]} 23... a5 {[%clk
0:01:15.8]} 24. Qxb6 {[%clk 0:00:42.1]} 24... Qxb6 {[%clk 0:01:13.5]} 0-1